[Event "Titled Tuesday Blitz August 1 Late 2023"]
[White "Mike24147"]
[Black "Gireman, Ja"]
[BlackFideId "5043794"]
[WhiteElo "2387"]
[BlackElo "2590"]
[Result "1-0"]
[Round "4"]
[TimeControl "180+1"]
[Date "2023.08.01"]
[WhiteClock "0:00:09"]
[BlackClock "0:00:00"]
[Board "72"]

1. c4 {[%clk 0:02:59]}  Nf6 {[%clk 0:02:59]} 2. g3 {[%clk 0:02:59]}  g6 {[%clk 0:02:58]} 3. Bg2 {[%clk 0:02:59]}  Bg7 {[%clk 0:02:59]} 4. Nc3 {[%clk 0:02:59]}  O-O {[%clk 0:02:58]} 5. d4 {[%clk 0:03:00]}  c6 {[%clk 0:02:58]} 6. e4 {[%clk 0:02:57]}  d5 {[%clk 0:02:49]} 7. cxd5 {[%clk 0:02:57]}  cxd5 {[%clk 0:02:49]} 8. e5 {[%clk 0:02:56]}  Nfd7 {[%clk 0:02:41]} 9. Bxd5 {[%clk 0:02:55]}  Nb6 {[%clk 0:02:41]} 10. Bg2 {[%clk 0:02:54]}  f6 {[%clk 0:02:40]} 11. exf6 {[%clk 0:02:42]}  Bxf6 {[%clk 0:02:40]} 12. Nge2 {[%clk 0:02:42]}  Nc6 {[%clk 0:02:39]} 13. Be3 {[%clk 0:02:35]}  Kh8 {[%clk 0:02:34]} 14. h3 {[%clk 0:02:31]}  Nc4 {[%clk 0:02:33]} 15. O-O {[%clk 0:02:25]}  Bf5 {[%clk 0:02:21]} 16. b3 {[%clk 0:02:22]}  Nxe3 {[%clk 0:02:18]} 17. fxe3 {[%clk 0:02:22]}  e5 {[%clk 0:02:18]} 18. d5 {[%clk 0:02:21]}  Nb4 {[%clk 0:02:15]} 19. e4 {[%clk 0:02:20]}  Bd7 {[%clk 0:02:13]} 20. a3 {[%clk 0:02:18]}  Na6 {[%clk 0:02:13]} 21. Kh2 {[%clk 0:02:18]}  Rc8 {[%clk 0:02:13]} 22. Rc1 {[%clk 0:02:17]}  Bg5 {[%clk 0:02:08]} 23. Rc2 {[%clk 0:02:17]}  Nc5 {[%clk 0:02:06]} 24. b4 {[%clk 0:02:15]}  Rxf1 {[%clk 0:02:02]} 25. Qxf1 {[%clk 0:02:14]}  Nb3 {[%clk 0:02:00]} 26. Rb2 {[%clk 0:01:59]}  Nd4 {[%clk 0:01:55]} 27. Nxd4 {[%clk 0:01:59]}  exd4 {[%clk 0:01:42]} 28. Ne2 {[%clk 0:01:58]}  Be3 {[%clk 0:01:29]} 29. Qd1 {[%clk 0:01:46]}  Qf6 {[%clk 0:01:26]} 30. Rc2 {[%clk 0:01:33]}  Rf8 {[%clk 0:01:24]} 31. Rc7 {[%clk 0:01:29]}  Bb5 {[%clk 0:01:23]} 32. Rxb7 {[%clk 0:01:19]}  Qa6 {[%clk 0:01:18]} 33. Rxb5 {[%clk 0:01:13]}  Qxb5 {[%clk 0:01:19]} 34. Nxd4 {[%clk 0:01:14]}  Qb6 {[%clk 0:01:17]} 35. Ne6 {[%clk 0:01:13]}  Rf7 {[%clk 0:01:16]} 36. d6 {[%clk 0:01:10]}  Rd7 {[%clk 0:01:10]} 37. Qa1+ {[%clk 0:01:05]}  Kg8 {[%clk 0:01:09]} 38. Qf6 {[%clk 0:00:54]}  Qxd6 {[%clk 0:01:00]} 39. e5 {[%clk 0:00:48]}  Qe7 {[%clk 0:00:59]} 40. Qxe7 {[%clk 0:00:35]}  Rxe7 {[%clk 0:00:59]} 41. Bd5 {[%clk 0:00:35]}  Kh8 {[%clk 0:00:51]} 42. Kg2 {[%clk 0:00:35]}  Bc1 {[%clk 0:00:46]} 43. Kf3 {[%clk 0:00:33]}  Bxa3 {[%clk 0:00:45]} 44. b5 {[%clk 0:00:34]}  Bb2 {[%clk 0:00:32]} 45. Ke4 {[%clk 0:00:34]}  h6 {[%clk 0:00:31]} 46. g4 {[%clk 0:00:29]}  Re8 {[%clk 0:00:25]} 47. Nd4 {[%clk 0:00:26]}  Kg7 {[%clk 0:00:15]} 48. e6 {[%clk 0:00:25]}  Bxd4 {[%clk 0:00:13]} 49. Kxd4 {[%clk 0:00:25]}  Kf6 {[%clk 0:00:13]} 50. h4 {[%clk 0:00:21]}  Ke7 {[%clk 0:00:13]} 51. Ke5 {[%clk 0:00:20]}  Rb8 {[%clk 0:00:12]} 52. Bc6 {[%clk 0:00:20]}  Rb6 {[%clk 0:00:12]} 53. Bd7 {[%clk 0:00:20]}  a6 {[%clk 0:00:12]} 54. bxa6 {[%clk 0:00:21]}  Rxa6 {[%clk 0:00:13]} 55. g5 {[%clk 0:00:19]}  Ra5+ {[%clk 0:00:13]} 56. Kf4 {[%clk 0:00:19]}  Rf5+ {[%clk 0:00:13]} 57. Kg4 {[%clk 0:00:19]}  hxg5 {[%clk 0:00:12]} 58. h5 {[%clk 0:00:16]}  Rf6 {[%clk 0:00:08]} 59. h6 {[%clk 0:00:12]}  Rxe6 {[%clk 0:00:04]} 60. Bxe6 {[%clk 0:00:12]}  Kf6 {[%clk 0:00:00]} 61. Bc4 {[%clk 0:00:09]} 1-0


[Site "https://www.chess.com"]

[Event "Titled Tuesday Blitz August 1 Late 2023"]
[White "Nikologorsky, Matfei"]
[Black "Adan Bermudez, Sergio"]
[WhiteFideId "24102474"]
[BlackFideId "2292726"]
[WhiteElo "2356"]
[BlackElo "2574"]
[Result "1-0"]
[Round "4"]
[TimeControl "180+1"]
[Date "2023.08.01"]
[WhiteClock "0:00:40"]
[BlackClock "0:00:36"]
[Board "76"]

1. e4 {[%clk 0:03:00]}  d6 {[%clk 0:02:59]} 2. d4 {[%clk 0:03:00]}  Nf6 {[%clk 0:03:00]} 3. Nc3 {[%clk 0:02:59]}  e5 {[%clk 0:03:01]} 4. Nf3 {[%clk 0:02:54]}  Nbd7 {[%clk 0:02:59]} 5. h3 {[%clk 0:02:52]}  Be7 {[%clk 0:02:57]} 6. a4 {[%clk 0:02:51]}  a5 {[%clk 0:02:57]} 7. Be3 {[%clk 0:02:46]}  c6 {[%clk 0:02:55]} 8. g4 {[%clk 0:02:39]}  h6 {[%clk 0:02:54]} 9. Qd2 {[%clk 0:02:38]}  Qc7 {[%clk 0:02:52]} 10. Bg2 {[%clk 0:02:32]}  g5 {[%clk 0:02:46]} 11. Bf1 {[%clk 0:02:29]}  Nf8 {[%clk 0:02:45]} 12. dxe5 {[%clk 0:02:26]}  dxe5 {[%clk 0:02:45]} 13. Bc4 {[%clk 0:02:17]}  Be6 {[%clk 0:02:42]} 14. Qe2 {[%clk 0:02:09]}  Ng6 {[%clk 0:02:38]} 15. Bxe6 {[%clk 0:02:07]}  fxe6 {[%clk 0:02:39]} 16. Qc4 {[%clk 0:02:07]}  Kf7 {[%clk 0:02:03]} 17. Bxg5 {[%clk 0:02:06]}  hxg5 {[%clk 0:01:59]} 18. Nxg5+ {[%clk 0:02:06]}  Ke8 {[%clk 0:01:58]} 19. Nxe6 {[%clk 0:01:50]}  Qb6 {[%clk 0:01:43]} 20. O-O-O {[%clk 0:01:41]}  Rh7 {[%clk 0:01:12]} 21. g5 {[%clk 0:01:34]}  Nh5 {[%clk 0:01:05]} 22. h4 {[%clk 0:01:20]}  Rf7 {[%clk 0:01:03]} 23. Rhf1 {[%clk 0:00:58]}  Rc8 {[%clk 0:00:55]} 24. Nd5 {[%clk 0:00:48]}  Qc5 {[%clk 0:00:42]} 25. Ndc7+ {[%clk 0:00:40]}  Rxc7 {[%clk 0:00:39]} 26. Nxc7+ {[%clk 0:00:41]}  Kf8 {[%clk 0:00:36]} 27. Ne6+ {[%clk 0:00:40]} 1-0


[Site "https://www.chess.com"]

[Event "Titled Tuesday Blitz August 1 Late 2023"]
[White "Karamsetty, Jeevan"]
[Black "Fuzesabonyilaci"]
[WhiteFideId "2025337"]
[WhiteElo "2573"]
[BlackElo "2340"]
[Result "0-1"]
[Round "4"]
[TimeControl "180+1"]
[Date "2023.08.01"]
[WhiteClock "0:00:00"]
[BlackClock "0:00:06"]
[Board "77"]

1. e4 {[%clk 0:03:00]}  e6 {[%clk 0:02:59]} 2. d4 {[%clk 0:03:00]}  d5 {[%clk 0:03:00]} 3. Bd3 {[%clk 0:03:01]}  dxe4 {[%clk 0:03:00]} 4. Bxe4 {[%clk 0:03:01]}  Nf6 {[%clk 0:03:00]} 5. Bf3 {[%clk 0:03:02]}  c5 {[%clk 0:02:59]} 6. Ne2 {[%clk 0:03:02]}  cxd4 {[%clk 0:02:47]} 7. Qxd4 {[%clk 0:02:59]}  Qxd4 {[%clk 0:02:41]} 8. Nxd4 {[%clk 0:03:00]}  e5 {[%clk 0:02:41]} 9. Nb5 {[%clk 0:02:56]}  Na6 {[%clk 0:02:41]} 10. N1c3 {[%clk 0:02:37]}  Bb4 {[%clk 0:02:31]} 11. O-O {[%clk 0:02:30]}  O-O {[%clk 0:02:25]} 12. Bg5 {[%clk 0:02:26]}  Bxc3 {[%clk 0:02:06]} 13. Nxc3 {[%clk 0:02:20]}  Nc7 {[%clk 0:02:05]} 14. Rfe1 {[%clk 0:02:14]}  Re8 {[%clk 0:02:01]} 15. Rad1 {[%clk 0:02:08]}  Rb8 {[%clk 0:01:54]} 16. Bxf6 {[%clk 0:01:48]}  gxf6 {[%clk 0:01:54]} 17. Ne4 {[%clk 0:01:49]}  Kg7 {[%clk 0:01:52]} 18. Nd6 {[%clk 0:01:45]}  Rf8 {[%clk 0:01:39]} 19. Be4 {[%clk 0:01:38]}  b6 {[%clk 0:01:30]} 20. h4 {[%clk 0:01:36]}  Be6 {[%clk 0:01:17]} 21. Re3 {[%clk 0:01:26]}  Rfd8 {[%clk 0:00:57]} 22. Red3 {[%clk 0:01:12]}  Rg8 {[%clk 0:00:34]} 23. b3 {[%clk 0:00:55]}  Na6 {[%clk 0:00:31]} 24. Bf5 {[%clk 0:00:39]}  Nc5 {[%clk 0:00:30]} 25. Rg3+ {[%clk 0:00:39]}  Kf8 {[%clk 0:00:27]} 26. Bxh7 {[%clk 0:00:34]}  Rh8 {[%clk 0:00:26]} 27. Bf5 {[%clk 0:00:24]}  Rxh4 {[%clk 0:00:23]} 28. Bxe6 {[%clk 0:00:22]}  Nxe6 {[%clk 0:00:21]} 29. Nf5 {[%clk 0:00:20]}  Rh5 {[%clk 0:00:20]} 30. Ne3 {[%clk 0:00:19]}  Ke7 {[%clk 0:00:19]} 31. Nd5+ {[%clk 0:00:17]}  Kf8 {[%clk 0:00:13]} 32. Nxf6 {[%clk 0:00:18]}  Rh8 {[%clk 0:00:13]} 33. Nd7+ {[%clk 0:00:18]}  Ke7 {[%clk 0:00:12]} 34. Nxb8 {[%clk 0:00:19]}  Rxb8 {[%clk 0:00:13]} 35. Rgd3 {[%clk 0:00:19]}  Rc8 {[%clk 0:00:11]} 36. Rd7+ {[%clk 0:00:18]}  Kf6 {[%clk 0:00:11]} 37. c4 {[%clk 0:00:19]}  a6 {[%clk 0:00:09]} 38. R7d6 {[%clk 0:00:18]}  b5 {[%clk 0:00:09]} 39. Rc1 {[%clk 0:00:13]}  a5 {[%clk 0:00:09]} 40. c5 {[%clk 0:00:12]}  Ke7 {[%clk 0:00:08]} 41. Rb6 {[%clk 0:00:11]}  b4 {[%clk 0:00:08]} 42. Rb5 {[%clk 0:00:11]}  Nd4 {[%clk 0:00:07]} 43. Re1 {[%clk 0:00:10]}  Nxb5 {[%clk 0:00:07]} 44. Rxe5+ {[%clk 0:00:10]}  Kf6 {[%clk 0:00:07]} 45. f4 {[%clk 0:00:10]}  Nc3 {[%clk 0:00:07]} 46. g4 {[%clk 0:00:08]}  Nxa2 {[%clk 0:00:07]} 47. g5+ {[%clk 0:00:09]}  Kg6 {[%clk 0:00:07]} 48. c6 {[%clk 0:00:08]}  Nc1 {[%clk 0:00:06]} 49. Rxa5 {[%clk 0:00:07]}  Rxc6 {[%clk 0:00:07]} 50. Rb5 {[%clk 0:00:06]}  Na2 {[%clk 0:00:07]} 51. Ra5 {[%clk 0:00:05]}  Rc2 {[%clk 0:00:06]} 52. Kf1 {[%clk 0:00:06]}  Rb2 {[%clk 0:00:06]} 53. Ke1 {[%clk 0:00:05]}  Kh5 {[%clk 0:00:05]} 54. Kd1 {[%clk 0:00:04]}  Nc3+ {[%clk 0:00:06]} 55. Ke1 {[%clk 0:00:04]}  Rxb3 {[%clk 0:00:06]} 56. Kf1 {[%clk 0:00:03]}  Rb2 {[%clk 0:00:06]} 57. Kg1 {[%clk 0:00:04]}  Kg6 {[%clk 0:00:06]} 58. Kf1 {[%clk 0:00:04]}  b3 {[%clk 0:00:06]} 59. Rc5 {[%clk 0:00:03]}  Rc2 {[%clk 0:00:06]} 60. Ke1 {[%clk 0:00:04]}  b2 {[%clk 0:00:06]} 61. Rc6+ {[%clk 0:00:00]}  Kg7 {[%clk 0:00:06]} 0-1


[Site "https://www.chess.com"]

[Event "Titled Tuesday Blitz August 1 Late 2023"]
[White "Taboas Rodriguez, Daniel"]
[Black "Vasques, Antonio Pedro Freixial"]
[WhiteFideId "2208466"]
[BlackFideId "1908332"]
[WhiteElo "2571"]
[BlackElo "2329"]
[Result "1-0"]
[Round "4"]
[TimeControl "180+1"]
[Date "2023.08.01"]
[WhiteClock "0:00:49"]
[BlackClock "0:00:15"]
[Board "78"]

1. d4 {[%clk 0:03:00]}  Nf6 {[%clk 0:02:59]} 2. Nf3 {[%clk 0:02:57]}  e6 {[%clk 0:02:58]} 3. c4 {[%clk 0:02:57]}  Bb4+ {[%clk 0:02:57]} 4. Nbd2 {[%clk 0:02:57]}  O-O {[%clk 0:02:55]} 5. a3 {[%clk 0:02:58]}  Be7 {[%clk 0:02:50]} 6. e4 {[%clk 0:02:55]}  d5 {[%clk 0:02:47]} 7. e5 {[%clk 0:02:55]}  Nfd7 {[%clk 0:02:48]} 8. Bd3 {[%clk 0:02:46]}  c5 {[%clk 0:02:39]} 9. O-O {[%clk 0:02:46]}  Nc6 {[%clk 0:02:39]} 10. Re1 {[%clk 0:02:42]}  cxd4 {[%clk 0:02:20]} 11. cxd5 {[%clk 0:02:41]}  exd5 {[%clk 0:02:21]} 12. b4 {[%clk 0:02:38]}  a6 {[%clk 0:02:17]} 13. Nb3 {[%clk 0:02:34]}  Re8 {[%clk 0:02:11]} 14. Nbxd4 {[%clk 0:02:30]}  Nxd4 {[%clk 0:02:03]} 15. Nxd4 {[%clk 0:02:31]}  Nf8 {[%clk 0:02:03]} 16. Bb2 {[%clk 0:02:29]}  Ne6 {[%clk 0:02:01]} 17. Nf5 {[%clk 0:02:26]}  Bf8 {[%clk 0:01:57]} 18. Qg4 {[%clk 0:02:23]}  g6 {[%clk 0:01:56]} 19. Qg3 {[%clk 0:02:14]}  Bd7 {[%clk 0:01:24]} 20. Nd6 {[%clk 0:02:10]}  Bxd6 {[%clk 0:01:16]} 21. exd6 {[%clk 0:02:11]}  Qg5 {[%clk 0:01:16]} 22. Qxg5 {[%clk 0:01:51]}  Nxg5 {[%clk 0:01:17]} 23. Bf6 {[%clk 0:01:51]}  Ne4 {[%clk 0:01:07]} 24. Be7 {[%clk 0:01:51]}  Bc6 {[%clk 0:00:45]} 25. f3 {[%clk 0:01:47]}  Nc3 {[%clk 0:00:44]} 26. Bf6 {[%clk 0:01:31]}  Nb5 {[%clk 0:00:35]} 27. Be7 {[%clk 0:01:31]}  Nd4 {[%clk 0:00:29]} 28. Re5 {[%clk 0:01:12]}  Kg7 {[%clk 0:00:19]} 29. Rae1 {[%clk 0:01:11]}  f6 {[%clk 0:00:19]} 30. R5e3 {[%clk 0:01:08]}  Kf7 {[%clk 0:00:19]} 31. Kf2 {[%clk 0:01:05]}  Bb5 {[%clk 0:00:18]} 32. Bxb5 {[%clk 0:00:58]}  axb5 {[%clk 0:00:18]} 33. d7 {[%clk 0:00:58]}  Nf5 {[%clk 0:00:17]} 34. dxe8=Q+ {[%clk 0:00:56]}  Rxe8 {[%clk 0:00:15]} 35. Bc5 {[%clk 0:00:49]} 1-0


[Site "https://www.chess.com"]

[Event "Titled Tuesday Blitz August 1 Late 2023"]
[White "Musovic, Armin"]
[Black "Ai, Evan"]
[WhiteFideId "939935"]
[BlackFideId "2094770"]
[WhiteElo "2568"]
[BlackElo "2326"]
[Result "1-0"]
[Round "4"]
[TimeControl "180+1"]
[Date "2023.08.01"]
[WhiteClock "0:00:28"]
[BlackClock "0:00:07"]
[Board "80"]

1. a3 {[%clk 0:03:00]}  e5 {[%clk 0:02:50]} 2. d4 {[%clk 0:02:59]}  exd4 {[%clk 0:02:50]} 3. Qxd4 {[%clk 0:03:00]}  Nc6 {[%clk 0:02:49]} 4. Qa4 {[%clk 0:03:00]}  d5 {[%clk 0:02:50]} 5. Nf3 {[%clk 0:03:00]}  Nf6 {[%clk 0:02:50]} 6. Nc3 {[%clk 0:02:58]}  Bc5 {[%clk 0:02:49]} 7. Bg5 {[%clk 0:02:56]}  Be6 {[%clk 0:02:45]} 8. e3 {[%clk 0:02:54]}  h6 {[%clk 0:02:40]} 9. Bh4 {[%clk 0:02:53]}  a6 {[%clk 0:02:36]} 10. O-O-O {[%clk 0:02:52]}  g5 {[%clk 0:02:33]} 11. Bg3 {[%clk 0:02:52]}  b5 {[%clk 0:02:29]} 12. Nxb5 {[%clk 0:02:51]}  axb5 {[%clk 0:02:29]} 13. Qxb5 {[%clk 0:02:52]}  Bxa3 {[%clk 0:01:57]} 14. Qxc6+ {[%clk 0:02:45]}  Bd7 {[%clk 0:01:46]} 15. Qxc7 {[%clk 0:02:45]}  Qxc7 {[%clk 0:01:42]} 16. Bxc7 {[%clk 0:02:46]}  Bb4 {[%clk 0:01:37]} 17. Kb1 {[%clk 0:02:37]}  Ke7 {[%clk 0:01:30]} 18. Be5 {[%clk 0:02:31]}  Rhb8 {[%clk 0:01:26]} 19. Bxb8 {[%clk 0:02:27]}  Rxb8 {[%clk 0:01:23]} 20. Nd4 {[%clk 0:02:02]}  Ne4 {[%clk 0:01:17]} 21. Bd3 {[%clk 0:01:50]}  Nxf2 {[%clk 0:01:15]} 22. Bf5 {[%clk 0:01:45]}  Bxf5 {[%clk 0:01:03]} 23. Nc6+ {[%clk 0:01:33]}  Kd6 {[%clk 0:01:00]} 24. Nxb8 {[%clk 0:01:34]}  Nxh1 {[%clk 0:00:53]} 25. Rxh1 {[%clk 0:01:35]}  Bc8 {[%clk 0:00:51]} 26. Rf1 {[%clk 0:01:18]}  f5 {[%clk 0:00:38]} 27. g4 {[%clk 0:01:19]}  fxg4 {[%clk 0:00:34]} 28. Rf6+ {[%clk 0:01:19]}  Kc7 {[%clk 0:00:27]} 29. Rxh6 {[%clk 0:01:18]}  Bd6 {[%clk 0:00:20]} 30. Kc1 {[%clk 0:01:05]}  Bb7 {[%clk 0:00:15]} 31. Rh8 {[%clk 0:01:02]}  Bc8 {[%clk 0:00:15]} 32. Rh6 {[%clk 0:00:52]}  Bb7 {[%clk 0:00:15]} 33. Kd2 {[%clk 0:00:50]}  Be5 {[%clk 0:00:10]} 34. Na6+ {[%clk 0:00:38]}  Bxa6 {[%clk 0:00:11]} 35. Rxa6 {[%clk 0:00:39]}  Bxh2 {[%clk 0:00:11]} 36. Ke2 {[%clk 0:00:37]}  Be5 {[%clk 0:00:11]} 37. b4 {[%clk 0:00:34]}  d4 {[%clk 0:00:08]} 38. Re6 {[%clk 0:00:28]}  Bd6 {[%clk 0:00:07]} 39. exd4 {[%clk 0:00:28]}  Bc5 {[%clk 0:00:07]} 40. bxc5 {[%clk 0:00:28]} 1-0


[Site "https://www.chess.com"]

[Event "Titled Tuesday Blitz August 1 Late 2023"]
[White "Thiel, Thomas"]
[Black "Vlassov, Nikolai"]
[WhiteFideId "4615964"]
[BlackFideId "4103360"]
[WhiteElo "2280"]
[BlackElo "2560"]
[Result "0-1"]
[Round "4"]
[TimeControl "180+1"]
[Date "2023.08.01"]
[WhiteClock "0:01:43"]
[BlackClock "0:02:15"]
[Board "82"]

1. e4 {[%clk 0:03:00]}  Nc6 {[%clk 0:02:59]} 2. Nf3 {[%clk 0:02:58]}  d5 {[%clk 0:02:59]} 3. exd5 {[%clk 0:02:58]}  Qxd5 {[%clk 0:03:00]} 4. Nc3 {[%clk 0:02:57]}  Qa5 {[%clk 0:03:00]} 5. Bb5 {[%clk 0:02:56]}  Bd7 {[%clk 0:03:00]} 6. O-O {[%clk 0:02:55]}  a6 {[%clk 0:03:00]} 7. Ba4 {[%clk 0:02:50]}  Qh5 {[%clk 0:02:53]} 8. d4 {[%clk 0:02:39]}  O-O-O {[%clk 0:02:46]} 9. Bb3 {[%clk 0:02:31]}  Bg4 {[%clk 0:02:43]} 10. d5 {[%clk 0:02:25]}  Ne5 {[%clk 0:02:34]} 11. Ne4 {[%clk 0:02:11]}  Nxf3+ {[%clk 0:02:24]} 12. gxf3 {[%clk 0:02:09]}  Bxf3 {[%clk 0:02:24]} 13. Qe1 {[%clk 0:01:43]}  Qh3 {[%clk 0:02:15]} 0-1


[Site "https://www.chess.com"]

[Event "Titled Tuesday Blitz August 1 Late 2023"]
[White "Haszon, David"]
[Black "Rasulov, Vugar"]
[WhiteFideId "733610"]
[BlackFideId "13402390"]
[WhiteElo "2499"]
[BlackElo "2826"]
[Result "0-1"]
[Round "4"]
[TimeControl "180+1"]
[Date "2023.08.01"]
[WhiteClock "0:00:02"]
[BlackClock "0:01:08"]
[Board "84"]

1. d4 {[%clk 0:02:53]}  g6 {[%clk 0:02:58]} 2. e4 {[%clk 0:02:49]}  Bg7 {[%clk 0:02:58]} 3. Nc3 {[%clk 0:02:49]}  c6 {[%clk 0:02:57]} 4. h4 {[%clk 0:02:42]}  d5 {[%clk 0:02:52]} 5. h5 {[%clk 0:02:37]}  dxe4 {[%clk 0:02:52]} 6. Be3 {[%clk 0:02:22]}  Nf6 {[%clk 0:02:52]} 7. h6 {[%clk 0:02:22]}  Bf8 {[%clk 0:02:52]} 8. Qd2 {[%clk 0:02:19]}  e6 {[%clk 0:02:51]} 9. f3 {[%clk 0:02:16]}  exf3 {[%clk 0:02:45]} 10. Nxf3 {[%clk 0:02:17]}  Bb4 {[%clk 0:02:45]} 11. Bg5 {[%clk 0:02:14]}  Ne4 {[%clk 0:02:36]} 12. Qf4 {[%clk 0:01:34]}  Nxg5 {[%clk 0:02:29]} 13. Nxg5 {[%clk 0:01:33]}  O-O {[%clk 0:02:24]} 14. O-O-O {[%clk 0:01:23]}  Bd6 {[%clk 0:02:22]} 15. Qe3 {[%clk 0:01:19]}  Be7 {[%clk 0:02:22]} 16. Nf3 {[%clk 0:01:16]}  Nd7 {[%clk 0:02:21]} 17. Kb1 {[%clk 0:01:14]}  Nb6 {[%clk 0:02:20]} 18. g4 {[%clk 0:01:11]}  Nd5 {[%clk 0:02:19]} 19. Nxd5 {[%clk 0:01:10]}  cxd5 {[%clk 0:02:17]} 20. g5 {[%clk 0:01:08]}  Bd7 {[%clk 0:02:07]} 21. Bd3 {[%clk 0:00:59]}  Rc8 {[%clk 0:02:05]} 22. Rdg1 {[%clk 0:00:46]}  a6 {[%clk 0:01:59]} 23. Ne5 {[%clk 0:00:42]}  Bb5 {[%clk 0:01:58]} 24. Nxg6 {[%clk 0:00:19]}  hxg6 {[%clk 0:01:52]} 25. Qe5 {[%clk 0:00:18]}  f6 {[%clk 0:01:47]} 26. Qxe6+ {[%clk 0:00:16]}  Kh8 {[%clk 0:01:45]} 27. Bxg6 {[%clk 0:00:12]}  Rc6 {[%clk 0:01:37]} 28. Qg4 {[%clk 0:00:06]}  fxg5 {[%clk 0:01:34]} 29. Bf5 {[%clk 0:00:06]}  Qc7 {[%clk 0:01:25]} 30. Re1 {[%clk 0:00:05]}  Bd8 {[%clk 0:01:15]} 31. c3 {[%clk 0:00:06]}  Qf4 {[%clk 0:01:13]} 32. Qh3 {[%clk 0:00:04]}  Qxf5+ {[%clk 0:01:07]} 33. Qxf5 {[%clk 0:00:04]}  Rxf5 {[%clk 0:01:08]} 34. Re8+ {[%clk 0:00:04]}  Kh7 {[%clk 0:01:08]} 35. Rxd8 {[%clk 0:00:05]}  Rxh6 {[%clk 0:01:09]} 36. Rd7+ {[%clk 0:00:02]}  Bxd7 {[%clk 0:01:08]} 0-1


[Site "https://www.chess.com"]

[Event "Titled Tuesday Blitz August 1 Late 2023"]
[White "Golubka, Petro"]
[Black "Nanu, Costica-Ciprian"]
[WhiteFideId "14114224"]
[BlackFideId "1204580"]
[WhiteElo "2711"]
[BlackElo "2496"]
[Result "1-0"]
[Round "4"]
[TimeControl "180+1"]
[Date "2023.08.01"]
[WhiteClock "0:00:18"]
[BlackClock "0:00:17"]
[Board "86"]

1. e4 {[%clk 0:02:11]}  c5 {[%clk 0:02:55]} 2. b3 {[%clk 0:02:10]}  Nc6 {[%clk 0:02:49]} 3. Bb2 {[%clk 0:02:09]}  e6 {[%clk 0:02:49]} 4. Bb5 {[%clk 0:02:06]}  d6 {[%clk 0:02:38]} 5. f4 {[%clk 0:02:03]}  Nf6 {[%clk 0:02:35]} 6. Qe2 {[%clk 0:02:01]}  Bd7 {[%clk 0:02:35]} 7. Bxc6 {[%clk 0:02:02]}  Bxc6 {[%clk 0:02:35]} 8. Nc3 {[%clk 0:02:02]}  Rb8 {[%clk 0:02:28]} 9. Nf3 {[%clk 0:01:57]}  b5 {[%clk 0:02:27]} 10. e5 {[%clk 0:01:57]}  Nd5 {[%clk 0:02:25]} 11. Nxd5 {[%clk 0:01:56]}  Bxd5 {[%clk 0:02:25]} 12. exd6 {[%clk 0:01:57]}  Bxd6 {[%clk 0:02:20]} 13. Bxg7 {[%clk 0:01:56]}  Rg8 {[%clk 0:02:20]} 14. Be5 {[%clk 0:01:57]}  Bxe5 {[%clk 0:02:14]} 15. fxe5 {[%clk 0:01:57]}  Bxf3 {[%clk 0:02:06]} 16. gxf3 {[%clk 0:01:25]}  Qd4 {[%clk 0:02:05]} 17. c3 {[%clk 0:01:25]}  Qh4+ {[%clk 0:02:05]} 18. Kd1 {[%clk 0:01:14]}  Ke7 {[%clk 0:01:53]} 19. Qe3 {[%clk 0:01:10]}  Rbc8 {[%clk 0:01:47]} 20. Kc2 {[%clk 0:01:11]}  Qh3 {[%clk 0:01:47]} 21. Rag1 {[%clk 0:00:51]}  Qf5+ {[%clk 0:01:31]} 22. Kb2 {[%clk 0:00:45]}  Rg6 {[%clk 0:01:19]} 23. Rg3 {[%clk 0:00:38]}  f6 {[%clk 0:00:50]} 24. exf6+ {[%clk 0:00:35]}  Qxf6 {[%clk 0:00:40]} 25. Rhg1 {[%clk 0:00:32]}  Rxg3 {[%clk 0:00:41]} 26. hxg3 {[%clk 0:00:31]}  Qf5 {[%clk 0:00:35]} 27. g4 {[%clk 0:00:29]}  Qg6 {[%clk 0:00:26]} 28. b4 {[%clk 0:00:26]}  cxb4 {[%clk 0:00:23]} 29. Qxa7+ {[%clk 0:00:26]}  Kf8 {[%clk 0:00:24]} 30. Qd7 {[%clk 0:00:21]}  bxc3+ {[%clk 0:00:23]} 31. dxc3 {[%clk 0:00:22]}  Re8 {[%clk 0:00:20]} 32. Qxb5 {[%clk 0:00:21]}  Qf6 {[%clk 0:00:17]} 33. Rd1 {[%clk 0:00:18]}  Qf4 {[%clk 0:00:16]} 34. Qb4+ {[%clk 0:00:17]}  Qxb4+ {[%clk 0:00:16]} 35. cxb4 {[%clk 0:00:18]}  Kf7 {[%clk 0:00:16]} 36. a4 {[%clk 0:00:18]}  Kf6 {[%clk 0:00:16]} 37. b5 {[%clk 0:00:18]}  Ke5 {[%clk 0:00:17]} 38. Rd3 {[%clk 0:00:18]}  Rb8 {[%clk 0:00:16]} 39. Kb3 {[%clk 0:00:19]}  Kf4 {[%clk 0:00:15]} 40. Kb4 {[%clk 0:00:19]}  e5 {[%clk 0:00:15]} 41. a5 {[%clk 0:00:19]}  e4 {[%clk 0:00:16]} 42. fxe4 {[%clk 0:00:19]}  Kxg4 {[%clk 0:00:16]} 43. a6 {[%clk 0:00:19]}  h5 {[%clk 0:00:17]} 44. a7 {[%clk 0:00:18]}  Re8 {[%clk 0:00:17]} 1-0


[Site "https://www.chess.com"]

[Event "Titled Tuesday Blitz August 1 Late 2023"]
[White "Sokolovsky, Yahli"]
[Black "ExchangeAB"]
[WhiteFideId "2820242"]
[WhiteElo "2664"]
[BlackElo "2467"]
[Result "0-1"]
[Round "4"]
[TimeControl "180+1"]
[Date "2023.08.01"]
[WhiteClock "0:02:40"]
[BlackClock "0:02:32"]
[Board "89"]

1. b3 {[%clk 0:03:00]}  d5 {[%clk 0:02:58]} 2. Bb2 {[%clk 0:03:01]}  Nf6 {[%clk 0:02:59]} 3. e3 {[%clk 0:03:00]}  Bf5 {[%clk 0:02:59]} 4. Nf3 {[%clk 0:03:00]}  e6 {[%clk 0:02:59]} 5. d4 {[%clk 0:03:01]}  h6 {[%clk 0:02:59]} 6. Bd3 {[%clk 0:03:01]}  Bxd3 {[%clk 0:02:59]} 7. Qxd3 {[%clk 0:03:02]}  Ne4 {[%clk 0:02:58]} 8. Nbd2 {[%clk 0:03:02]}  Nxd2 {[%clk 0:02:57]} 9. Qxd2 {[%clk 0:03:02]}  c6 {[%clk 0:02:56]} 10. Ne5 {[%clk 0:03:02]}  Nd7 {[%clk 0:02:56]} 11. c4 {[%clk 0:03:00]}  Nxe5 {[%clk 0:02:55]} 12. dxe5 {[%clk 0:03:01]}  dxc4 {[%clk 0:02:55]} 13. Qxd8+ {[%clk 0:03:01]}  Rxd8 {[%clk 0:02:54]} 14. bxc4 {[%clk 0:02:56]}  Bb4+ {[%clk 0:02:53]} 15. Kf1 {[%clk 0:02:56]}  Rd2 {[%clk 0:02:52]} 16. Rb1 {[%clk 0:02:57]}  O-O {[%clk 0:02:34]} 17. Bc1 {[%clk 0:02:40]}  Rd1+ {[%clk 0:02:32]} 0-1


[Site "https://www.chess.com"]